bitfinex/quotes_ETHUSD_20251120
["timestamp","ask_amount","ask_price","bid_price","bid_amount"]
[1763630966530,0.4616,3014.4,3013.7,0.937]
[1763630967099,0.4616,3014.4,3013.7,4.2551719]
[1763630967428,0.4616,3014.4,3013.7,0.91111719]
[1763630967632,3.77902873,3014.4,3013.7,4.29676463]
[1763630967832,0.4616,3014.4,3013.7,4.29676463]
[1763630968030,3.42938078,3014.5,3013.8,0.493]
[1763630968195,0.112,3014.5,3013.9,0.0331796]
[1763630968393,3.42929974,3014.5,3013.9,0.71625245]
[1763630968593,0.112,3014.5,3013.8,0.493]
[1763630969416,0.112,3014.5,3013.9,3.31796011]
[1763630969615,0.112,3014.5,3013.8,3.81105141]
[1763630969928,0.112,3014.5,3013.9,0.493]
[1763630970950,3.42930072,3014.5,3013.9,0.493]
[1763630971333,0.112,3014.5,3013.9,1.20592277]
[1763630971558,0.112,3014.5,3014.4,0.4861]
[1763630971753,3.31663958,3015.1,3014.4,0.9791]
[1763630972052,0.112,3015.0,3014.7,0.4861]
[1763630972921,0.112,3015.0,3014.9,0.4861]
[1763630973662,0.112,3015.0,3014.9,0.9791]
[1763630973957,0.112,3015.3,3014.9,0.9791]
[1763630974854,0.112,3015.3,3014.9,4.72554272]
[1763630975422,0.112,3015.3,3014.9,1.40870633]
[1763630975821,0.112,3015.3,3014.9,4.7255627]
[1763630976136,0.1112,3015.3,3014.9,4.7255627]
[1763630976340,0.1112,3015.3,3014.9,0.91570633]
[1763630976558,3.89191995,3015.3,3014.9,0.4861]
[1763630976756,0.5755,3015.3,3014.9,0.4861]
[1763630977375,0.1112,3015.3,3014.9,0.4861]
[1763630977683,3.42764608,3015.3,3014.9,0.4861]
[1763630977989,0.1112,3015.3,3014.9,0.4861]
[1763630978282,3.42763503,3015.3,3014.9,0.4861]
[1763630978450,0.1112,3015.3,3014.9,0.4861]
[1763630979772,3.42764488,3015.3,3014.9,0.4861]
[1763630979974,3.88694488,3015.3,3014.9,0.4861]
[1763630980572,0.5705,3015.3,3014.9,0.4861]
[1763630980745,3.88692523,3015.3,3014.9,0.4861]
[1763630981482,3.88692523,3015.3,3014.5,3.31727271]
[1763630981483,0.4166,3015.0,3014.5,3.31727271]
[1763630981671,0.0046,3014.8,3014.6,0.33172727]
[1763630981870,0.0046,3014.8,3014.7,3.31707964]
[1763630982980,0.4593,3015.1,3014.7,3.31707964]
[1763630983484,0.1112,3015.3,3014.7,0.4944]
[1763630984028,0.1112,3015.3,3014.8,3.31696961]
[1763630984376,0.5705,3015.3,3014.8,3.31696961]
[1763630984576,3.88694371,3015.3,3014.7,3.81146315]
[1763630984790,3.88694371,3015.3,3014.7,4.22578219]
[1763630985218,0.5705,3015.3,3014.7,7.54286183]
[1763630985414,0.1112,3015.3,3015.2,0.4806]
[1763630985583,0.1112,3015.3,3014.7,7.04846183]
[1763630986078,0.1112,3015.3,3014.7,3.73138219]
[1763630986279,0.1112,3015.3,3014.8,0.42257822]
[1763630986670,0.5705,3015.3,3014.8,0.42257822]
[1763630987076,0.4166,3014.9,3014.3,7.3255997]
[1763630987276,0.1166,3014.8,3014.3,7.3255997]
[1763630987509,0.112,3014.7,3014.3,7.3255997]
[1763630987779,0.112,3014.7,3014.4,0.4944]
[1763630988099,0.112,3014.9,3014.3,4.00807988]
[1763630988280,0.112,3014.9,3014.4,0.40080799]
[1763630988483,0.112,3014.9,3014.4,0.89520799]
[1763630988776,0.4593,3014.8,3014.4,0.40080799]
[1763630989215,0.4593,3014.8,3014.5,3.31729971]
[1763630989417,0.2931,3014.9,3014.5,3.31729971]
[1763630989716,0.112,3014.9,3014.5,7.40720889]
[1763630989920,0.112,3014.9,3014.8,0.4806]
[1763630990376,0.5433,3014.9,3014.6,0.4944]
[1763630990777,0.5433,3014.9,3014.5,7.40720889]
[1763630990990,0.5433,3014.9,3014.5,7.90160889]
[1763630991193,0.5433,3014.9,3014.6,0.83024169]
[1763630991415,0.5433,3014.9,3014.7,3.31707964]
[1763630992130,3.31623489,3015.5,3014.8,0.4806]
[1763630992346,0.5713,3015.4,3014.8,0.975]
[1763630992499,0.5713,3015.4,3014.8,0.4806]
[1763630993600,0.002,3015.6,3015.3,0.4806]
[1763630993935,0.112,3015.5,3015.3,0.4806]
[1763630994734,0.112,3015.5,3015.4,0.4806]
[1763630995439,0.112,3015.5,3015.4,0.975]
[1763630995597,0.002,3015.6,3015.4,3.79690961]
[1763630995802,0.002,3015.6,3015.5,0.4806]
[1763630997249,0.4451,3015.6,3015.4,0.71133607]
[1763630997403,0.002,3015.6,3015.1,3.49808879]
[1763630997608,0.002,3015.6,3015.1,3.99248879]
[1763630997918,0.002,3015.6,3015.1,3.31658879]
[1763630997919,0.4593,3015.5,3015.1,3.31658879]
[1763630998114,0.4613,3015.6,3015.1,7.12762837]
[1763630998332,0.002,3015.6,3015.5,0.4806]
[1763630999059,0.4451,3015.6,3015.2,1.20716284]
[1763630999259,0.4592,3015.5,3015.0,3.31669992]
[1763630999674,0.4592,3015.5,3014.9,6.63371918]
[1763631000024,0.4592,3015.5,3014.9,7.12811918]
[1763631000231,0.002,3015.6,3015.4,0.4806]
[1763631000430,0.002,3015.6,3015.5,0.4806]
[1763631000634,0.002,3015.6,3014.9,3.31685959]
[1763631000857,0.002,3015.6,3015.0,0.83847376]
[1763631000858,3.31808969,3015.6,3015.0,0.83847376]
[1763631001037,0.002,3015.6,3015.0,0.83847376]
[1763631001252,0.002,3015.6,3015.0,1.33287376]
[1763631001567,0.002,3015.6,3015.0,0.83847376]
[1763631001568,3.3551038,3015.6,3015.0,0.83847376]
[1763631001770,0.002,3015.6,3015.0,4.15520314]
[1763631001938,0.002,3015.6,3015.5,0.4806]
[1763631002368,0.4436,3015.6,3015.1,0.79452031]
[1763631002662,0.4436,3015.6,3015.5,0.4806]
[1763631002663,0.002,3015.6,3015.5,0.4806]
[1763631003028,0.002,3015.6,3015.5,0.975]
[1763631003463,0.002,3015.6,3015.5,5.73320952]
[1763631003772,0.002,3015.6,3015.5,9.6227301]
[1763631004253,0.002,3015.6,3015.5,10.52972274]
[1763631004452,0.002,3016.0,3015.7,4.891936]
[1763631004655,0.002,3016.0,3015.9,5.23880952]
[1763631005166,0.002,3016.0,3015.9,5.73320952]
[1763631005371,0.002,3016.0,3015.9,6.31773047]
[1763631005756,0.002,3016.0,3015.9,9.63349027]
[1763631005974,0.002,3016.0,3015.9,10.54048291]
[1763631006164,0.002,3016.0,3015.9,15.29869243]
[1763631006333,0.002,3016.0,3015.9,25.82297443]
[1763631006535,0.002,3016.0,3015.9,22.10074243]
[1763631006941,0.002,3016.0,3015.9,20.31237343]
[1763631007264,0.002,3016.0,3015.9,18.39494243]
[1763631007852,0.002,3016.0,3015.9,18.16166443]
[1763631008053,0.002,3016.0,3015.9,10.54048291]
[1763631008253,0.002,3016.0,3015.9,13.76720291]
[1763631008454,0.002,3016.0,3015.9,10.54048291]
[1763631008663,0.002,3016.0,3015.9,17.80456243]
[1763631009181,0.0012,3016.1,3016.0,0.90699264]
[1763631009358,0.0012,3016.1,3016.0,4.14622387]
[1763631009565,0.0012,3016.1,3016.0,18.11740587]
[1763631009874,0.0012,3016.1,3016.0,10.75039373]
[1763631010740,0.0012,3016.1,3016.0,9.98467373]
[1763631011372,0.0012,3016.1,3016.0,22.06268873]
[1763631011936,0.0012,3016.1,3016.0,11.07118873]
[1763631012432,0.002,3016.5,3016.1,0.405504]
[1763631012666,0.002,3016.5,3016.4,5.41090952]
[1763631012871,0.002,3016.5,3016.4,5.89420952]
[1763631013089,0.002,3016.5,3016.2,2.27591295]
[1763631013383,0.419,3016.5,3016.1,1.08749264]
[1763631013688,0.419,3016.5,3016.1,0.64582264]
[1763631014379,0.419,3016.5,3016.2,6.63086002]
[1763631014883,0.002,3016.5,3016.4,0.4722]
[1763631015871,0.002,3016.5,3016.4,0.9555]
[1763631016074,0.4739,3016.5,3016.4,0.76195132]
[1763631016258,0.4739,3016.5,3015.4,0.4833]
[1763631016259,4.21311961,3016.5,3015.4,0.4833]
[1763631016584,0.0042,3016.4,3015.2,3.79973335]
[1763631016735,0.870804,3016.4,3015.2,3.79973335]
[1763631016943,0.870804,3016.4,3015.3,1.33818017]
[1763631017142,0.870804,3016.4,3015.3,1.78831598]
[1763631017143,0.4611,3016.3,3015.3,1.78831598]
[1763631017362,0.4653,3016.4,3015.4,0.4833]
[1763631017562,0.4611,3016.4,3015.4,0.4833]
[1763631017868,0.114,3016.5,3015.5,0.112]
[1763631018069,0.114,3016.5,3015.6,0.4833]
[1763631018438,0.5751,3016.5,3015.7,6.6319594]
[1763631019558,3.89024053,3016.5,3015.7,6.6319594]
[1763631019979,0.4611,3016.4,3015.7,6.6319594]
[1763631020136,0.4611,3016.4,3015.8,0.4833]
[1763631020337,0.114,3016.5,3015.9,3.3157598]
[1763631020559,0.114,3016.5,3015.9,6.6315196]
[1763631020763,0.114,3016.5,3015.9,7.1148196]
[1763631022307,3.89020791,3016.5,3015.8,3.31581784]
[1763631022676,3.89020791,3016.5,3015.7,6.63190682]
[1763631022677,0.4611,3016.4,3015.7,6.63190682]
[1763631022905,0.4611,3016.4,3015.7,7.3547275]
[1763631023107,0.4611,3016.4,3015.7,7.8380275]
[1763631023511,0.4611,3016.4,3015.7,4.5220478]
[1763631023709,0.4611,3016.4,3015.8,0.03315869]
[1763631023894,0.114,3016.5,3015.8,0.03315869]
[1763631023895,0.114,3016.5,3015.8,0.4833]
[1763631024082,0.5743,3016.5,3015.8,0.78380275]
[1763631024615,0.4348,3015.9,3015.7,4.03875783]
[1763631024809,3.88940927,3016.5,3015.7,6.63191685]
[1763631025001,0.4611,3016.4,3015.8,0.4722]
[1763631025340,0.0012,3016.5,3015.8,0.4722]
[1763631025614,0.4611,3016.4,3015.8,0.4722]
[1763631026109,0.4348,3015.9,3015.5,0.001]
[1763631026314,0.4305,3015.6,3015.5,0.001]
[1763631026710,0.8916,3015.6,3015.5,0.001]
[1763631027201,0.4305,3015.6,3015.5,0.001]
[1763631027386,0.112,3015.9,3015.5,0.4732]
[1763631027601,0.112,3015.9,3015.5,0.9565]
[1763631027926,0.112,3015.9,3015.5,0.4732]
[1763631028221,0.5731,3015.9,3015.5,0.4732]
[1763631028892,0.112,3015.9,3015.6,3.31608966]
[1763631030149,0.112,3015.9,3015.5,0.001]
[1763631030361,0.112,3015.9,3015.5,6.45111918]
[1763631030506,0.112,3015.9,3015.5,3.13491955]
[1763631030906,0.112,3015.9,3015.3,6.63283918]
[1763631031157,0.7983,3015.9,3015.3,4.38904455]
[1763631031310,0.7983,3015.9,3015.3,3.31641959]
[1763631031508,0.3911,3015.4,3015.1,0.001]
[1763631031743,0.0039,3015.3,3015.1,3.31763092]
[1763631031952,0.3873,3015.2,3015.1,3.31763092]
[1763631032110,0.4884,3015.8,3015.1,0.001]
[1763631032313,0.4884,3015.8,3015.1,6.63426138]
[1763631032625,0.4884,3015.8,3015.1,3.3176218]
[1763631033039,3.80427143,3015.8,3015.1,0.001]
[1763631033552,0.4884,3015.7,3015.1,0.001]
[1763631034176,0.3911,3015.2,3015.1,0.001]
[1763631034531,0.8785,3015.2,3015.1,0.001]
[1763631036650,4.19502958,3015.2,3015.1,0.001]
[1763631037566,4.60053358,3015.2,3015.1,0.001]
[1763631040439,9.36007107,3015.2,3015.1,0.001]
[1763631040655,10.26706371,3015.2,3015.1,0.001]
[1763631043171,0.405504,3015.1,3014.8,0.001]
[1763631043338,9.58189372,3014.9,3014.8,0.001]
[1763631043743,10.03969372,3014.9,3014.8,0.001]
[1763631044184,5.28015623,3014.9,3014.8,0.001]
[1763631044885,10.03969372,3014.9,3014.8,0.001]
[1763631046381,5.28015623,3014.9,3014.8,0.001]
[1763631046590,10.03969372,3014.9,3014.8,0.001]
[1763631047103,5.28015623,3014.9,3014.8,0.001]
[1763631047302,5.39215623,3014.9,3014.8,0.001]
[1763631048160,5.39135623,3014.9,3014.8,0.001]
[1763631049861,4.93355623,3014.9,3014.8,0.001]
[1763631050062,4.74545623,3014.9,3014.8,0.001]
[1763631050463,0.112,3014.9,3014.8,0.4845]
[1763631050657,3.42885959,3014.9,3014.8,0.4845]
[1763631050886,0.112,3014.9,3014.8,0.4845]
[1763631051058,0.1881,3015.3,3014.8,0.4845]
[1763631051059,0.8805316,3016.4,3014.8,0.9388]
[1763631051265,3.42786975,3015.8,3014.9,0.4835]
[1763631051460,6.7437395,3015.8,3015.0,0.56983375]
[1763631051672,7.2015395,3015.8,3015.0,0.56983375]
[1763631051879,0.405504,3015.7,3015.1,0.1952]
[1763631052471,0.405504,3015.7,3015.0,0.56983375]
[1763631052706,0.4578,3015.6,3014.8,0.001]
[1763631053207,0.4578,3015.6,3014.8,0.4553]
[1763631053910,0.112,3015.8,3015.5,0.4835]
[1763631054208,3.31598331,3015.7,3015.5,0.4835]
[1763631055177,0.112,3015.8,3015.6,0.4835]
[1763631055508,3.42789577,3015.8,3015.6,0.4835]
[1763631056799,6.74379154,3015.8,3015.3,0.4543]
[1763631056980,6.74379154,3015.8,3015.3,0.85027857]
[1763631057381,6.74379154,3015.8,3015.4,0.4543]
[1763631057715,0.112,3015.8,3015.4,0.4543]
[1763631057913,0.112,3015.8,3015.7,0.4835]
[1763631058288,0.112,3015.8,3015.7,0.9378]
[1763631058479,0.112,3015.8,3015.7,0.4835]
[1763631059241,0.112,3015.8,3015.3,3.77067541]
[1763631059462,3.42790945,3015.8,3015.4,0.39595754]
[1763631059669,3.42790945,3015.8,3015.4,0.4543]
[1763631059818,6.7438189,3015.8,3015.2,0.1889]
[1763631060013,3.31603009,3015.7,3015.2,0.1889]
[1763631060357,3.31603009,3015.7,3015.2,0.6432]
[1763631060852,0.4578,3015.6,3015.0,3.31670423]
[1763631061022,0.4578,3015.6,3015.0,4.02570148]
[1763631061728,0.03700562,3015.5,3014.9,0.001]
[1763631061924,3.31641959,3015.3,3014.9,0.001]
[1763631063714,0.4578,3015.2,3014.9,0.001]
[1763631063918,0.4241,3015.0,3014.9,0.001]
[1763631064371,3.85284958,3015.0,3014.9,0.001]
[1763631064662,4.31024958,3015.0,3014.9,0.001]
[1763631065026,0.5361,3015.0,3014.9,0.001]
[1763631065233,3.85284958,3015.0,3014.9,0.001]
[1763631065621,0.5361,3015.0,3014.9,0.001]
[1763631065932,0.112,3015.0,3014.9,0.4845]
[1763631066658,0.112,3015.0,3014.9,1.36635]
[1763631068329,0.112,3015.0,3014.9,5.15635]
[1763631068569,3.72175468,3015.5,3014.9,8.47320362]
[1763631068731,0.90899264,3015.8,3014.9,8.47320362]
[1763631068732,0.112,3015.4,3015.3,0.4718]
[1763631068935,0.112,3015.4,3015.0,1.34192036]
[1763631069251,0.112,3015.4,3015.3,0.6607]
[1763631069659,0.112,3015.4,3015.3,1.1552]
[1763631070231,3.31601845,3015.7,3015.3,1.1552]
[1763631070442,3.42801845,3015.7,3015.6,0.4718]
[1763631071181,0.112,3015.7,3015.6,0.4718]
[1763631072271,0.1112,3015.7,3015.6,0.4718]
[1763631073333,3.4271797,3015.7,3015.6,0.4718]
[1763631073573,0.1112,3015.7,3015.6,0.4718]
[1763631074133,3.4271797,3015.7,3015.6,0.4718]
[1763631074678,0.1112,3015.7,3015.6,0.4718]
[1763631075083,3.4271797,3015.7,3015.6,0.4718]
[1763631075376,0.1112,3015.7,3015.6,0.4718]
[1763631076073,0.1112,3015.7,3015.6,4.28238966]
[1763631076383,0.002,3015.8,3015.6,5.04225089]
[1763631076546,0.002,3015.8,3015.7,0.9663]
[1763631078480,0.002,3015.8,3015.7,4.2822797]
[1763631080597,0.002,3015.8,3015.7,5.18927234]
[1763631080759,0.002,3015.8,3015.7,5.22243213]
[1763631080957,0.002,3015.8,3015.7,6.13031064]
[1763631081480,0.002,3015.8,3015.7,17.25030643]
[1763631081669,0.002,3015.8,3015.7,16.95300264]
[1763631081993,0.002,3016.2,3016.0,0.90699264]
[1763631082193,0.002,3016.2,3016.1,0.5838]
[1763631082474,0.002,3016.2,3016.1,9.75995357]
[1763631082646,0.002,3016.2,3016.1,6.66115839]
[1763631083048,0.002,3016.2,3016.1,5.64216575]
[1763631083360,0.002,3016.2,3016.1,4.39383993]
[1763631083556,0.002,3016.2,3016.1,3.78733993]
[1763631083775,0.002,3016.2,3016.1,0.4718]
[1763631084081,0.002,3016.2,3016.1,3.78733993]
[1763631084286,0.002,3016.2,3016.1,4.28183993]
[1763631084489,0.002,3016.2,3016.1,5.05278862]
[1763631088093,0.002,3016.2,3016.1,8.84278862]
[1763631088320,0.0012,3016.5,3016.2,0.90699264]
[1763631088463,0.002,3016.9,3016.5,14.436481]
[1763631088658,0.002,3016.9,3016.8,12.74755343]
[1763631089089,0.002,3016.9,3016.8,13.20145343]
[1763631089301,0.4857,3018.4,3016.9,3.657966]
[1763631089498,3.31309159,3018.4,3016.9,4.086514]
[1763631089704,0.4857,3018.2,3016.9,4.198514]
[1763631089880,0.4857,3018.2,3016.9,5.71677186]
[1763631090079,3.31291077,3018.5,3016.9,5.71677186]
[1763631090284,0.4857,3018.3,3017.1,0.6427]
[1763631090528,0.4857,3018.3,3017.2,0.112]
[1763631090705,0.4857,3018.3,3017.3,0.4539]
[1763631091199,0.4857,3018.3,3017.4,6.62822296]
[1763631091404,3.79882665,3018.3,3017.5,0.8202123]
[1763631091601,3.79882665,3018.3,3017.5,0.7082123]
[1763631091916,0.5737,3017.6,3016.8,3.31476562]
[1763631092119,0.1974,3017.6,3016.9,0.112]
[1763631092271,0.1974,3017.6,3017.0,0.112]
[1763631092471,0.6831,3017.6,3017.0,0.112]
[1763631093372,0.6831,3017.6,3017.1,3.31444101]
[1763631093582,0.6831,3017.6,3016.7,0.1899]
[1763631093583,0.3763,3017.1,3016.7,0.1899]
[1763631093781,0.3763,3017.1,3016.6,0.90699264]
[1763631094069,0.3763,3017.1,3016.6,0.59858929]
[1763631094696,0.3763,3017.1,3016.7,0.4539]
[1763631094984,0.3763,3017.1,3016.7,0.27688]
[1763631095180,0.405504,3017.5,3016.7,0.27688]
[1763631095382,4.20526387,3017.5,3016.8,3.31477061]
[1763631095771,0.4857,3017.4,3016.8,3.31477061]
[1763631096208,0.4948,3016.9,3016.8,3.31477061]
[1763631096521,0.4948,3016.9,3016.7,3.31484805]
[1763631096855,0.4956,3016.7,3015.8,3.31580106]
[1763631097055,0.1944,3016.6,3015.8,3.31580106]
[1763631097351,0.4857,3016.5,3015.8,3.99017004]
[1763631097556,3.80081776,3016.5,3015.8,3.99017004]
[1763631097722,3.80081776,3016.5,3015.8,7.30603979]
[1763631097920,0.4857,3016.4,3015.8,7.30603979]
[1763631098216,0.57,3015.9,3015.6,3.31708394]
[1763631098459,0.3815,3015.8,3015.6,0.001]
[1763631098617,0.3815,3015.8,3015.6,3.31708736]
[1763631099051,0.4504,3015.7,3015.6,0.001]
[1763631099517,0.1196,3015.9,3015.6,0.001]
[1763631100248,0.4732,3016.1,3015.6,0.001]
[1763631100454,0.5852,3016.4,3015.6,0.001]
[1763631100862,3.90041182,3016.4,3015.6,0.001]
[1763631101257,0.4732,3016.3,3015.6,0.001]
[1763631102357,0.112,3016.4,3015.6,0.001]
[1763631102557,0.4732,3016.3,3015.6,0.001]
[1763631102954,0.4504,3015.7,3015.6,0.001]
[1763631103638,0.1976,3015.9,3015.6,0.001]
[1763631104163,0.6708,3015.9,3015.6,0.001]
[1763631104362,0.4504,3015.7,3015.6,0.001]
[1763631105941,0.1976,3015.9,3015.6,0.001]
[1763631105942,0.1976,3015.9,3015.6,3.31704005]
[1763631106143,0.6708,3015.9,3015.6,0.001]
[1763631106344,0.405504,3016.1,3015.6,3.3170787]
[1763631106558,0.112,3016.4,3015.6,3.3170787]
[1763631106855,0.4732,3016.1,3015.6,3.3170787]
[1763631107966,0.4732,3016.1,3015.6,0.001]
[1763631108359,0.5852,3016.4,3016.0,0.4752]
[1763631109375,3.90042311,3016.4,3016.0,0.4752]
[1763631109875,3.90042311,3016.4,3015.6,0.4834]
[1763631110173,0.5852,3016.4,3015.8,3.31586975]
[1763631110482,3.72049438,3016.6,3015.8,3.31586975]
[1763631110778,7.03551291,3016.6,3015.8,3.31586975]
[1763631110947,7.03551291,3016.6,3015.8,7.1141395]
[1763631110948,4.19369438,3016.6,3015.8,7.1141395]
[1763631111353,7.50871291,3016.6,3015.8,0.4824]
[1763631112188,7.50871291,3016.6,3015.8,3.79825525]
[1763631113045,3.3148835,3016.7,3015.8,6.631725]
[1763631113246,0.90699264,3016.7,3015.8,7.114125]
[1763631113472,0.4732,3016.6,3015.7,3.79]
[1763631113674,0.4732,3016.6,3015.7,7.10595517]
[1763631114342,3.31510028,3016.5,3015.7,7.10595517]
[1763631114846,0.4732,3016.4,3015.7,7.10595517]
[1763631115251,0.4732,3016.4,3015.8,0.001]
[1763631115880,0.4732,3016.4,3015.9,3.79]
[1763631116043,0.112,3016.5,3015.9,3.79]
[1763631116244,3.42712318,3016.5,3016.0,3.31564986]
[1763631116586,3.31479342,3016.8,3016.4,0.4752]
[1763631116788,0.112,3016.8,3016.4,0.4752]
[1763631117280,0.5852,3016.8,3016.4,0.4752]
[1763631117964,0.5852,3016.8,3016.1,0.6396]
[1763631117965,0.002,3016.9,3016.1,0.1572]
[1763631118142,0.002,3016.9,3016.2,0.4824]
[1763631118345,0.002,3016.9,3016.3,3.31532009]
[1763631118579,0.00090591,3016.9,3016.2,3.79781208]
[1763631118788,0.19850591,3016.9,3016.2,3.79781208]
[1763631119470,0.19850591,3016.9,3016.1,0.1572]
[1763631119669,0.67170591,3016.9,3016.1,3.47271866]
[1763631120148,0.4732,3016.8,3016.1,3.47271866]
[1763631120347,0.4724,3016.8,3016.1,3.47271866]
[1763631120560,0.4724,3016.8,3016.1,6.78825859]
[1763631121059,3.51322297,3016.9,3016.1,7.27065859]
[1763631121375,0.19850591,3016.9,3016.2,0.4824]
[1763631121965,3.51320169,3016.9,3016.1,6.78825859]
[1763631122152,3.51320169,3016.9,3016.2,0.112]
[1763631122153,0.19850591,3016.9,3016.2,0.112]
[1763631122358,0.67170591,3016.9,3016.2,0.112]
[1763631122558,3.98637163,3016.9,3016.1,0.1572]
[1763631122755,3.98637163,3016.9,3015.8,0.001]
[1763631122756,0.4504,3016.2,3016.0,3.31559701]
[1763631123077,0.4732,3016.5,3016.0,6.63124687]
[1763631123685,0.4732,3016.5,3016.0,7.11364687]
[1763631124073,0.112,3016.7,3016.1,0.158]
[1763631124387,0.4504,3016.2,3015.9,3.31571206]
[1763631124564,0.4732,3016.6,3015.8,0.001]
[1763631124565,0.4477,3016.0,3015.8,0.001]
[1763631126196,0.4732,3016.3,3015.8,0.001]
[1763631127065,3.78855999,3016.3,3015.8,0.001]
[1763631127319,0.6307,3015.9,3015.8,0.001]
[1763631127670,1.1039,3015.9,3015.8,0.001]
[1763631129171,4.4196598,3015.9,3015.8,0.001]
[1763631129505,4.8251638,3015.9,3015.8,0.001]
[1763631129901,4.95793484,3015.9,3015.8,0.001]
[1763631132321,5.06993484,3015.9,3015.8,0.001]
[1763631134226,0.13277104,3015.9,3015.8,0.001]
[1763631134414,0.13277104,3015.9,3015.8,0.9553]
[1763631134727,0.13277104,3015.9,3015.8,0.48]
[1763631134927,0.4742,3015.9,3015.8,0.001]
[1763631135291,1.1043,3015.9,3015.8,0.001]
[1763631135511,0.6196,3015.9,3015.8,0.001]
[1763631135710,1.1043,3015.9,3015.8,0.001]
[1763631136429,1.509804,3015.9,3015.8,0.001]
[1763631136592,1.64256667,3015.9,3015.8,0.001]
[1763631137220,4.95832647,3015.9,3015.8,0.001]
[1763631137407,0.4742,3015.9,3015.8,0.001]
[1763631137813,0.13275342,3016.0,3015.8,0.48]
[1763631138014,0.112,3016.2,3015.9,0.479]
[1763631138216,0.592,3016.2,3015.9,0.479]
[1763631138595,4.39214439,3016.2,3015.8,0.001]
[1763631138807,1.0767,3016.2,3015.8,0.001]
[1763631139096,0.592,3016.2,3015.8,0.001]
[1763631139430,0.112,3016.2,3016.1,0.479]
[1763631141429,3.79963758,3016.7,3016.1,3.96486979]
[1763631141629,0.4742,3016.2,3016.1,3.79]
[1763631141996,0.9589,3016.2,3016.1,3.79]
[1763631142196,0.4742,3016.2,3016.1,3.79]
[1763631142727,0.5967,3016.5,3016.1,3.79]
[1763631142919,0.5967,3016.5,3016.1,4.269]
[1763631143231,0.5967,3016.5,3016.1,3.79]
[1763631143450,0.112,3016.5,3016.4,0.479]
[1763631144240,0.1112,3016.5,3016.4,0.479]
[1763631144532,3.42878611,3016.8,3016.4,0.429]
[1763631144732,3.91348611,3016.8,3016.4,0.429]
[1763631145095,0.114,3016.8,3016.1,6.80146189]
[1763631145294,0.002,3016.8,3016.7,0.479]
[1763631145738,0.002,3016.8,3016.2,0.4753]
[1763631145927,0.002,3016.8,3016.7,0.479]
[1763631147250,0.002,3016.8,3016.7,3.79388049]
[1763631147420,0.002,3016.8,3016.7,4.27228049]
[1763631149119,0.4729,3016.8,3016.2,0.90699264]
[1763631149320,0.4709,3016.3,3015.6,0.001]
[1763631149522,0.4683,3016.2,3015.7,3.31590409]
[1763631149752,0.36170562,3016.7,3015.7,3.31590409]
[1763631149753,0.4755,3016.6,3015.8,3.31684679]
[1763631150060,0.4755,3016.6,3015.8,0.001]
[1763631150422,0.405504,3016.5,3015.8,0.001]
[1763631150623,0.6676,3015.9,3015.8,0.001]
[1763631151143,1.1431,3015.9,3015.8,0.001]
[1763631154565,0.6676,3015.9,3015.8,0.001]
[1763631154867,0.4709,3015.9,3015.8,0.001]
[1763631155572,0.5875,3016.2,3015.8,0.001]
[1763631155774,3.90297643,3016.2,3015.8,0.001]
[1763631156943,0.4755,3016.1,3015.8,0.001]
[1763631158666,0.4527,3015.9,3015.8,0.001]
[1763631160241,0.112,3016.2,3015.8,0.001]
[1763631160437,0.4527,3015.9,3015.8,0.001]
[1763631160646,0.6438,3015.9,3015.8,0.001]
[1763631160851,1.1278,3015.9,3015.8,0.001]
[1763631161051,4.4435598,3015.9,3015.8,0.001]
[1763631162684,5.75605644,3015.9,3015.8,0.001]
[1763631162880,6.76366512,3015.9,3015.8,0.001]
[1763631163068,7.05687178,3015.9,3015.8,0.001]
[1763631163652,2.74522665,3015.9,3015.8,0.001]
[1763631163857,5.86805644,3015.9,3015.8,0.001]
[1763631164083,4.9610638,3015.9,3015.8,0.001]
[1763631164285,0.7558,3015.9,3015.8,0.001]
[1763631164589,0.5647,3015.9,3015.8,0.001]
[1763631164752,4.3644598,3015.9,3015.8,0.001]
[1763631164949,4.5555598,3015.9,3015.8,0.001]
[1763631165788,0.112,3015.9,3015.8,0.001]
[1763631166371,3.8804598,3015.9,3015.8,0.001]
[1763631166769,3.31554243,3016.1,3015.8,0.001]
[1763631166770,0.112,3016.1,3015.8,0.001]
[1763631167088,0.4527,3015.9,3015.8,0.001]
[1763631167670,0.5002,3016.6,3015.8,0.9938]
[1763631167875,0.002,3016.8,3016.0,0.4936]
[1763631167876,3.31496115,3016.7,3016.0,0.4936]
[1763631168061,7.1139223,3016.7,3016.0,0.4936]
[1763631168257,7.1139223,3016.7,3015.8,0.001]
[1763631168258,0.4527,3016.1,3015.8,0.001]
[1763631168470,0.4504,3015.9,3015.8,0.001]
[1763631168789,0.112,3016.2,3015.8,0.001]
[1763631169088,0.4527,3015.9,3015.8,0.001]
[1763631170181,3.42745957,3016.2,3015.8,0.4946]
[1763631170381,0.596,3016.2,3015.8,0.4946]
[1763631170979,0.112,3016.2,3015.8,0.4946]
[1763631171294,0.112,3016.2,3015.8,0.9938]
[1763631172092,0.112,3016.2,3015.8,0.4946]
[1763631172285,0.112,3016.2,3015.8,3.81046049]
[1763631172484,0.596,3016.2,3015.8,0.4946]
[1763631172995,3.91144348,3016.2,3015.8,0.4946]
[1763631173373,3.91144348,3016.2,3015.8,0.001]
[1763631173374,1.049304,3015.9,3015.8,0.001]
[1763631173768,1.533304,3015.9,3015.8,0.001]